bitfinex/quotes_SOLUSD_20240912
["timestamp","ask_amount","ask_price","bid_price","bid_amount"]
[1726167551544,0.2516302,135.44,135.39,15.0208]
[1726167551545,0.5026102,135.44,135.39,15.0208]
[1726167551747,24.027864,135.43,135.34,22.0668]
[1726167551962,23.776884,135.41,135.34,22.0668]
[1726167552165,23.776884,135.39,135.36,14.68084889]
[1726167552361,0.25098,135.38,135.37,14.68084889]
[1726167553347,0.12549,135.38,135.37,14.68084889]
[1726167553567,23.776884,135.43,135.37,14.68084889]
[1726167553766,0.25098,135.42,135.4,14.68084889]
[1726167557076,0.2516302,135.44,135.41,14.68084889]
[1726167558273,0.12549,135.43,135.41,14.68084889]
[1726167558877,0.25098,135.43,135.42,14.68084889]
[1726167559173,0.25098,135.43,135.34,22.0668]
[1726167559174,0.25098,135.43,135.41,14.68084889]
[1726167559377,0.25098,135.43,135.4,14.68084889]
[1726167560575,24.027864,135.43,135.4,14.68084889]
[1726167565295,24.027864,135.43,135.41,14.68084889]
[1726167566984,0.25098,135.43,135.42,14.68084889]
[1726167567576,0.2516302,135.44,135.42,14.68084889]
[1726167567763,0.2516302,135.44,135.43,14.68084889]
[1726167568182,0.2516302,135.44,135.43,34.68084889]
[1726167571968,0.3771202,135.44,135.43,34.68084889]
[1726167572169,0.2516302,135.44,135.43,34.68084889]
[1726167580706,0.5026102,135.44,135.43,34.68084889]
[1726167581010,0.5026102,135.44,135.42,14.68084889]
[1726167581174,0.5026102,135.44,135.4,14.68084889]
[1726167581175,24.027864,135.43,135.4,14.68084889]
[1726167581520,0.25098,135.43,135.4,14.68084889]
[1726167581678,2.09719375,135.43,135.4,14.68084889]
[1726167582202,2.09719375,135.43,135.39,14.68084889]
[1726167582203,23.776884,135.42,135.39,14.68084889]
[1726167582380,0.25098,135.41,135.4,20.0]
[1726167583706,25.87420533,135.41,135.4,20.0]
[1726167584083,24.027864,135.41,135.4,20.0]
[1726167584283,24.027864,135.41,135.4,14.68084889]
[1726167584612,24.027864,135.41,135.4,34.68084889]
[1726167584911,0.25098,135.41,135.4,34.68084889]
[1726167588708,0.2516302,135.44,135.4,34.68084889]
[1726167588905,0.25098,135.43,135.42,14.68084889]
[1726167589594,0.25098,135.43,135.41,14.68084889]
[1726167590082,0.25098,135.43,135.42,14.68084889]
[1726167590586,0.2516302,135.44,135.42,14.68084889]
[1726167590789,0.2516302,135.44,135.43,14.68084889]
[1726167591527,0.2516302,135.44,135.43,34.68084889]
[1726167591690,0.3771202,135.44,135.43,34.68084889]
[1726167592013,0.5026102,135.44,135.43,34.68084889]
[1726167594912,0.2516302,135.44,135.43,34.68084889]
[1726167599933,0.5026102,135.44,135.43,34.68084889]
[1726167600733,0.5026102,135.44,135.36,21.5142]
[1726167600935,0.5026102,135.44,135.41,14.68084889]
[1726167600936,24.027864,135.43,135.41,14.68084889]
[1726167601118,0.25098,135.43,135.42,14.68084889]
[1726167601520,0.2516302,135.44,135.42,14.68084889]
[1726167601718,0.2516302,135.44,135.43,14.68084889]
[1726167602236,0.2516302,135.44,135.42,14.68084889]
[1726167602615,0.2516302,135.44,135.36,21.5142]
[1726167602935,0.2516302,135.44,135.33,10.0793859]
[1726167602936,23.776884,135.42,135.33,10.0793859]
[1726167603136,0.25098,135.41,135.34,3.6416859]
[1726167603337,23.776884,135.39,135.34,3.6416859]
[1726167603518,23.776884,135.39,135.36,14.68084889]
[1726167603519,0.25098,135.38,135.36,14.68084889]
[1726167604641,23.776884,135.37,135.34,14.68084889]
[1726167604843,0.25098,135.36,135.34,14.68084889]
[1726167605441,2.09808286,135.36,135.33,14.68084889]
[1726167605856,0.25098,135.36,135.33,14.68084889]
[1726167606143,0.25098,135.36,135.31,22.98195355]
[1726167607520,0.25098,135.36,135.32,20.0]
[1726167609018,23.776884,135.35,135.3,0.2516302]
[1726167609336,0.25098,135.34,135.3,0.2516302]
[1726167610225,23.776884,135.33,135.3,0.2516302]
[1726167610523,0.12549,135.34,135.3,23.23358375]
[1726167610746,0.12549,135.34,135.32,22.98195355]
[1726167610945,21.8105,135.38,135.32,22.98195355]
[1726167610946,15.1876,135.38,135.32,22.98195355]
[1726167611242,15.1876,135.38,135.34,22.98195355]
[1726167611445,6.636,135.42,135.3,26.68108059]
[1726167611446,16.3115,135.41,135.36,22.98195355]
[1726167612226,16.3115,135.41,135.38,22.98195355]
[1726167612443,0.2516302,135.44,135.38,22.98195355]
[1726167613330,2.09781214,135.44,135.37,20.0]
[1726167613640,6.3631,135.43,135.36,20.0]
[1726167613847,1.84669878,135.42,135.36,20.0]
[1726167614145,1.84669878,135.42,135.33,6.4419]
[1726167614352,0.25098,135.41,135.33,20.0]
[1726167614723,23.776884,135.39,135.33,20.0]
[1726167615035,0.25098,135.38,135.33,20.0]
[1726167615241,0.25098,135.37,135.33,20.0]
[1726167615440,0.25098,135.41,135.34,22.98195355]
[1726167615637,0.25098,135.41,135.35,20.0]
[1726167615947,0.25098,135.41,135.36,22.98195355]
[1726167616750,0.25098,135.41,135.32,20.0]
[1726167617052,0.25098,135.41,135.35,22.98195355]
[1726167617436,0.25098,135.41,135.36,20.0]
[1726167618335,23.776884,135.4,135.36,20.0]
[1726167618537,0.25098,135.39,135.36,20.0]
[1726167618834,0.25098,135.41,135.36,20.0]
[1726167619048,23.776884,135.4,135.36,20.0]
[1726167619248,0.25098,135.39,135.36,20.0]
[1726167621559,0.25098,135.39,135.34,20.0]
[1726167621938,0.25098,135.39,135.35,22.98195355]
[1726167622529,0.25098,135.39,135.36,20.0]
[1726167622936,23.776884,135.38,135.36,20.0]
[1726167623146,0.25098,135.37,135.32,22.98195355]
[1726167624544,0.25098,135.37,135.33,20.0]
[1726167629339,0.12549,135.37,135.33,20.0]
[1726167629553,23.776884,135.39,135.33,20.0]
[1726167629761,0.25098,135.38,135.33,20.0]
[1726167631364,23.776884,135.4,135.35,20.0]
[1726167631550,0.25098,135.39,135.35,20.0]
[1726167634081,0.12549,135.39,135.37,20.0]
[1726167634271,0.25098,135.4,135.37,20.0]
[1726167637670,24.027864,135.4,135.37,20.0]
[1726167638176,24.027864,135.4,135.37,14.69804767]
[1726167639070,24.027864,135.4,135.37,20.0]
[1726167639450,1.84662059,135.39,135.34,14.69804767]
[1726167639660,24.027864,135.38,135.34,14.69804767]
[1726167639862,24.027864,135.38,135.33,14.69804767]
[1726167640371,24.027864,135.38,135.31,22.97825136]
[1726167640948,24.027864,135.38,135.32,20.0]
[1726167642474,24.027864,135.38,135.34,20.0]
[1726167642673,0.25098,135.38,135.34,20.0]
[1726167647064,0.25098,135.38,135.31,42.97825136]
[1726167648965,0.25098,135.38,135.34,20.0]
[1726167649580,0.25098,135.38,135.32,20.0]
[1726167650058,0.25098,135.38,135.33,22.97825136]
[1726167650465,0.25098,135.38,135.34,20.0]
[1726167650998,0.25098,135.38,135.35,22.97825136]
[1726167651704,0.25098,135.38,135.36,20.0]
[1726167651980,15.3273,135.41,135.37,22.97825136]
[1726167653476,23.902374,135.4,135.36,20.0]
[1726167655296,0.12549,135.4,135.36,20.0]
[1726167655594,0.25098,135.4,135.36,20.0]
[1726167656996,0.25098,135.4,135.37,22.97825136]
[1726167657993,0.25098,135.4,135.38,20.0]
[1726167658295,0.12549,135.4,135.39,1.47418469]
[1726167658494,22.0854302,135.44,135.4,20.0]
[1726167658495,15.8613302,135.44,135.4,20.0]
[1726167659774,0.2516302,135.44,135.4,20.0]
[1726167659963,0.2516302,135.44,135.41,22.97825136]
[1726167660167,0.2516302,135.44,135.43,14.68417413]
[1726167660784,0.2516302,135.48,135.43,14.68417413]
[1726167660785,0.2516302,135.48,135.43,34.68417413]
[1726167660987,0.2516302,135.48,135.46,14.68417413]
[1726167661397,0.2516302,135.48,135.47,14.68417413]
[1726167661579,0.2516302,135.48,135.46,14.68417413]
[1726167662101,0.2516302,135.48,135.44,22.93496328]
[1726167662281,0.2516302,135.48,135.45,20.0]
[1726167668806,0.2516302,135.48,135.46,22.93496328]
[1726167671407,0.2516302,135.48,135.47,20.0]
[1726167673504,0.2516302,135.52,135.47,20.0]
[1726167674007,0.2516302,135.52,135.49,20.0]
[1726167677317,0.2516302,135.56,135.52,6.6306]
[1726167677614,0.2516302,135.56,135.55,42.93496328]
[1726167679086,0.2516302,135.6,135.56,20.0]
[1726167679593,0.2516302,135.6,135.52,6.6306]
[1726167679594,0.2516302,135.6,135.54,20.0]
[1726167680218,0.12549,135.59,135.54,20.0]
[1726167680412,0.12549,135.59,135.55,30.0]
[1726167680413,2.09518427,135.59,135.55,30.0]
[1726167680720,23.776884,135.58,135.55,30.0]
[1726167681214,0.12549,135.57,135.55,30.0]
[1726167681516,0.25098,135.57,135.55,30.0]
[1726167689797,2.09526792,135.57,135.55,30.0]
[1726167689995,23.776884,135.56,135.55,30.0]
[1726167690191,24.027864,135.56,135.55,30.0]
[1726167690437,38.69236985,135.56,135.55,30.0]
[1726167690727,38.69236985,135.56,135.49,14.66450585]
[1726167690728,55.20336985,135.56,135.49,14.66450585]
[1726167690930,2.09575041,135.55,135.5,14.66450585]
[1726167691248,0.25098,135.55,135.51,14.66450585]
[1726167691605,0.25098,135.55,135.52,14.66450585]
[1726167692136,0.25098,135.55,135.47,10.15505039]
[1726167692137,0.25098,135.55,135.5,22.91485394]
[1726167692936,23.776884,135.54,135.49,20.0]
[1726167693234,0.25098,135.53,135.49,20.0]
[1726167693534,0.25098,135.53,135.47,20.0]
[1726167693742,0.25098,135.53,135.49,20.0]
[1726167696015,0.25098,135.53,135.47,20.0]
[1726167696217,0.25098,135.53,135.49,20.0]
[1726167697121,0.25098,135.53,135.5,22.91485394]
[1726167697122,0.12549,135.53,135.5,22.91485394]
[1726167697705,16.3266,135.59,135.53,20.0]
[1726167699635,16.3266,135.59,135.53,50.0]
[1726167700014,23.776884,135.58,135.53,50.0]
[1726167700339,0.25098,135.57,135.53,50.0]
[1726167700842,23.776884,135.58,135.55,20.0]
[1726167701008,23.776884,135.58,135.55,50.0]
[1726167701208,1.84391376,135.62,135.56,22.91485394]
[1726167701738,15.5435,135.63,135.56,22.91485394]
[1726167702525,24.027864,135.62,135.56,22.91485394]
[1726167702729,23.902374,135.62,135.57,20.0]
[1726167704237,17.38713361,135.63,135.57,20.0]
[1726167704238,15.5435,135.63,135.57,20.0]
[1726167704416,17.38695315,135.63,135.57,20.0]
[1726167704618,17.38695315,135.63,135.56,20.0]
[1726167704926,17.38695315,135.63,135.58,20.0]
[1726167705525,24.027864,135.62,135.58,20.0]
[1726167706319,0.25098,135.62,135.58,20.0]
[1726167707615,0.25098,135.62,135.55,10.15505039]
[1726167707616,0.25098,135.62,135.59,22.91485394]
[1726167708439,0.25098,135.62,135.58,20.0]
[1726167709014,23.776884,135.61,135.56,20.0]
[1726167709326,0.25098,135.6,135.58,20.0]
[1726167709639,0.25098,135.6,135.55,20.0]
[1726167710033,0.25098,135.6,135.56,22.91485394]
[1726167710421,0.25098,135.6,135.57,20.0]
[1726167710931,23.776884,135.61,135.58,22.91485394]
[1726167711439,0.3576474,135.64,135.58,22.91485394]
[1726167712026,0.3576474,135.64,135.6,22.91485394]
[1726167712742,0.12549,135.63,135.59,20.0]
[1726167713148,0.3576474,135.64,135.6,22.91485394]
[1726167715159,0.3576474,135.64,135.61,21.47262095]
[1726167715323,0.3576474,135.64,135.63,20.0]
[1726167715530,0.3576474,135.64,135.63,21.47261295]
[1726167716340,0.3576474,135.64,135.63,27.78791294]
[1726167716856,0.3576474,135.64,135.63,43.88111294]
[1726167717459,0.349982,135.7,135.63,43.88111294]
[1726167717626,0.349982,135.7,135.66,22.91485394]
[1726167717940,0.349982,135.7,135.67,1.47397588]
[1726167719353,0.349982,135.7,135.66,22.91485394]
[1726167719662,24.027864,135.69,135.66,22.91485394]
[1726167719838,0.25098,135.69,135.67,20.0]
[1726167720469,0.349982,135.7,135.68,24.38623724]
[1726167720646,0.349982,135.7,135.68,22.91485394]
[1726167723065,0.349982,135.7,135.67,20.0]
[1726167723561,0.349982,135.7,135.63,22.4085]
[1726167723562,0.349982,135.7,135.64,20.0]
[1726167723771,24.027864,135.69,135.64,20.0]
[1726167723948,24.027864,135.69,135.65,22.91485394]
[1726167724263,0.349982,135.7,135.68,20.0]
[1726167726064,0.349982,135.7,135.66,20.0]
[1726167726549,24.027864,135.69,135.66,20.0]
[1726167726861,24.027864,135.69,135.63,45.32335394]
[1726167726862,24.027864,135.69,135.63,22.91485394]
[1726167727164,23.776884,135.67,135.61,22.91485394]
[1726167727344,0.25098,135.66,135.61,22.91485394]
[1726167727747,0.25098,135.66,135.6,22.3317]
[1726167728849,0.25098,135.66,135.59,22.91485394]
[1726167729060,23.776884,135.65,135.59,22.91485394]
[1726167729365,0.25098,135.64,135.59,22.91485394]
[1726167730464,0.25098,135.64,135.6,20.0]
[1726167730851,0.25098,135.64,135.57,22.91485394]
[1726167731271,0.25098,135.64,135.59,22.91485394]
[1726167731772,0.25098,135.64,135.6,20.0]
[1726167735054,0.12549,135.64,135.62,20.0]
[1726167735279,6.0838,135.69,135.62,20.0]
[1726167735280,23.776884,135.68,135.62,20.0]
[1726167735481,6.0838,135.69,135.62,20.0]
[1726167735482,0.25098,135.67,135.62,20.0]
[1726167735657,0.25098,135.68,135.62,20.0]
[1726167735855,0.12549,135.66,135.62,20.0]
[1726167736065,0.25098,135.68,135.62,20.0]
[1726167736970,24.027864,135.68,135.62,20.0]
[1726167737171,25.87074308,135.68,135.62,20.0]
[1726167738189,23.776884,135.66,135.6,20.0]
[1726167738475,0.25098,135.65,135.6,20.0]
[1726167738664,0.25098,135.65,135.57,42.91485394]
[1726167738665,23.776884,135.64,135.57,42.91485394]
[1726167738860,0.25098,135.63,135.57,42.91485394]
[1726167740155,0.25098,135.63,135.59,22.91485394]
[1726167740378,0.25098,135.63,135.6,20.0]
[1726167740585,0.12549,135.63,135.6,20.0]
[1726167741164,0.12549,135.63,135.55,7.41843694]
[1726167741165,18.18012886,135.63,135.55,7.41843694]
[1726167741465,18.18012886,135.63,135.55,0.0431216]
[1726167741466,23.776884,135.62,135.55,0.0431216]
[1726167741679,0.25098,135.61,135.55,0.0431216]
[1726167745665,0.25098,135.61,135.55,22.95797554]
[1726167745887,0.25098,135.61,135.56,20.0]
[1726167746783,0.25098,135.61,135.55,0.0431216]
[1726167746984,23.776884,135.59,135.55,0.0431216]
[1726167747294,0.25098,135.58,135.55,0.0431216]
[1726167748467,23.776884,135.62,135.56,20.0]
[1726167748798,0.12549,135.61,135.56,20.0]
[1726167749167,23.776884,135.6,135.55,0.0431216]
[1726167749486,23.776884,135.58,135.55,0.0431216]
[1726167749671,0.12549,135.57,135.55,0.0431216]
[1726167749871,0.25098,135.57,135.55,0.0431216]
[1726167750392,0.12549,135.57,135.55,0.0431216]
[1726167750590,23.776884,135.6,135.55,0.0431216]
[1726167750889,0.25098,135.59,135.55,0.0431216]
[1726167751095,0.25098,135.59,135.55,22.95797554]
[1726167751276,0.25098,135.59,135.56,20.0]
[1726167751469,16.2115,135.63,135.57,22.91485394]
[1726167751992,16.2115,135.63,135.58,20.0]
[1726167752768,24.027864,135.62,135.58,20.0]
[1726167754990,25.87142915,135.62,135.58,20.0]
[1726167755184,25.871453,135.62,135.58,20.0]
[1726167755389,25.871453,135.62,135.56,20.0]
[1726167755976,24.027864,135.62,135.56,20.0]
[1726167756472,25.87154328,135.62,135.56,20.0]
[1726167756674,25.87176177,135.62,135.55,0.0431216]
[1726167756868,24.027864,135.62,135.56,20.0]
[1726167757090,25.87163644,135.62,135.56,20.0]
[1726167757392,24.027864,135.62,135.56,20.0]
[1726167758294,25.87156674,135.62,135.56,20.0]
[1726167758495,24.027864,135.62,135.56,20.0]
[1726167760781,24.027864,135.62,135.57,22.91485394]
[1726167763875,24.027864,135.62,135.58,20.0]
[1726167764386,16.5540571,135.66,135.6,20.0]
[1726167765809,24.027864,135.65,135.6,20.0]
[1726167768107,25.87100354,135.65,135.6,20.0]
[1726167768479,24.027864,135.65,135.6,20.0]
[1726167768909,23.776884,135.63,135.57,42.91485394]
[1726167769218,0.25098,135.62,135.57,42.91485394]
[1726167770588,2.09453331,135.62,135.57,20.0]
[1726167770795,23.776884,135.61,135.56,20.0]
[1726167771095,0.25098,135.6,135.56,20.0]
[1726167775086,16.5540571,135.66,135.58,20.0]
[1726167776118,1.84334954,135.65,135.58,20.0]
[1726167776306,25.87121354,135.64,135.58,20.0]
[1726167777486,24.027864,135.64,135.58,20.0]
[1726167778509,0.25098,135.64,135.58,20.0]
[1726167782315,2.0942656,135.64,135.58,20.0]
[1726167782494,23.776884,135.63,135.56,20.0]
[1726167782694,0.25098,135.62,135.56,20.0]
[1726167783914,0.25098,135.62,135.56,42.89553056]
[1726167786413,23.776884,135.61,135.56,42.89553056]
[1726167786614,0.25098,135.6,135.56,42.89553056]
[1726167787818,23.776884,135.61,135.56,42.89553056]
[1726167788030,23.776884,135.65,135.58,22.89553056]
[1726167788234,0.25098,135.64,135.59,20.0]
[1726167788697,16.5540571,135.66,135.59,20.0]
[1726167790220,0.2113571,135.66,135.61,20.0]
[1726167791429,0.12549,135.65,135.61,20.0]
[1726167791630,0.25098,135.65,135.61,20.0]
[1726167792324,0.2113571,135.66,135.61,20.0]
[1726167793807,0.25098,135.65,135.61,20.0]
[1726167794208,0.25098,135.65,135.62,22.89553056]
[1726167795202,0.2113571,135.66,135.62,22.89553056]
[1726167795809,0.2113571,135.66,135.61,20.0]
[1726167796032,0.12549,135.65,135.61,20.0]
[1726167796325,0.25098,135.65,135.61,20.0]
[1726167798126,2.09408025,135.65,135.59,20.0]
[1726167798500,23.776884,135.64,135.59,20.0]
[1726167798702,0.25098,135.63,135.59,20.0]
[1726167801523,0.12549,135.63,135.61,20.0]
[1726167801725,23.776884,135.64,135.61,20.0]
[1726167801927,0.2113571,135.66,135.61,20.0]
[1726167803018,0.12549,135.65,135.61,20.0]
[1726167803225,0.25098,135.65,135.61,20.0]
[1726167807038,0.25098,135.65,135.6,22.89553056]
[1726167807439,0.25098,135.65,135.61,20.0]
[1726167808226,0.25098,135.65,135.62,14.64271466]
[1726167808420,0.25098,135.65,135.63,14.64271466]
[1726167810423,0.25098,135.65,135.64,14.64271466]
[1726167810633,0.2113571,135.66,135.64,14.64271466]
[1726167811948,0.2113571,135.66,135.65,14.64271466]
[1726167812249,0.4623371,135.66,135.65,14.64271466]
[1726167813950,0.2113571,135.66,135.65,34.64271466]
[1726167816630,0.2113571,135.66,135.65,20.0]
[1726167816939,0.2113571,135.66,135.62,34.64271466]
[1726167817138,0.2113571,135.66,135.63,14.64271466]
[1726167818460,0.2113571,135.66,135.62,20.0]
[1726167818638,0.25098,135.65,135.62,20.0]
[1726167818956,0.25098,135.65,135.62,34.64271466]
[1726167820267,23.776884,135.64,135.58,30.71761466]
[1726167820458,23.776884,135.62,135.56,28.24823]
[1726167820650,0.25098,135.61,135.56,20.87291466]
[1726167820971,0.25098,135.61,135.57,14.64271466]
[1726167821268,0.25098,135.61,135.58,14.64271466]
[1726167822842,23.776884,135.6,135.55,0.0431216]
[1726167823050,23.776884,135.58,135.55,0.0431216]
[1726167824561,23.776884,135.58,135.55,20.0431216]
[1726167825442,23.776884,135.58,135.55,0.0431216]
[1726167825654,23.776884,135.56,135.55,0.0431216]
[1726167825962,24.027864,135.56,135.55,0.0431216]
[1726167827579,23.776884,135.61,135.55,0.0431216]
[1726167827762,23.776884,135.59,135.55,0.0431216]
[1726167827962,0.25098,135.58,135.55,0.0431216]
[1726167828880,23.776884,135.57,135.55,0.0431216]
[1726167829060,25.62143267,135.56,135.55,0.0431216]
[1726167829277,25.87241267,135.56,135.55,0.0431216]
[1726167830058,24.027864,135.56,135.55,0.0431216]
[1726167830880,30.692664,135.56,135.55,0.0431216]
[1726167832195,30.692664,135.56,135.51,0.2544787]
[1726167832196,6.641,135.52,135.51,0.2544787]
[1726167832486,32.38881882,135.52,135.51,0.2544787]
[1726167834283,32.51430882,135.52,135.51,0.2544787]
[1726167835377,25.87330882,135.52,135.51,0.2544787]
[1726167836067,24.027864,135.52,135.51,0.2544787]
[1726167836391,25.87319365,135.52,135.51,0.2544787]
[1726167836972,25.87320324,135.52,135.51,0.2544787]
[1726167839489,15.3055,135.54,135.51,0.2544787]
[1726167839988,23.01082427,135.58,135.51,0.2544787]
[1726167840185,21.9293,135.58,135.51,0.2544787]
[1726167840382,15.2911,135.58,135.51,0.2544787]
[1726167840791,1.84475476,135.57,135.51,0.2544787]
[1726167842394,24.027864,135.56,135.51,0.2544787]
[1726167842589,1.84465107,135.55,135.51,0.2544787]
[1726167842778,24.027864,135.54,135.51,0.2544787]
[1726167843606,23.776884,135.54,135.51,23.1635061]
[1726167843777,15.5167,135.62,135.53,22.9090274]
[1726167843981,73.99707558,135.62,135.53,6.641]
[1726167844314,65.5167,135.62,135.53,6.641]
[1726167844486,15.5167,135.62,135.53,6.641]
[1726167844686,65.5167,135.62,135.53,6.641]
[1726167845586,24.027864,135.61,135.53,6.641]
[1726167846303,23.776884,135.59,135.53,6.641]
[1726167846607,0.25098,135.58,135.53,6.641]
[1726167848000,0.25098,135.58,135.53,29.5500274]
[1726167848305,0.25098,135.58,135.54,20.0]
[1726167848481,0.12549,135.58,135.55,15.1616]
[1726167854085,23.902374,135.58,135.55,15.1616]
[1726167854284,0.12549,135.57,135.55,15.1616]
[1726167854509,0.12549,135.57,135.53,6.641]
[1726167854680,23.776884,135.56,135.53,6.641]
[1726167854883,0.25098,135.55,135.53,6.641]
[1726167862490,0.25098,135.55,135.51,15.8695787]
[1726167862715,0.25098,135.55,135.52,20.0]
[1726167863121,23.776884,135.54,135.51,15.8695787]
[1726167863815,0.25098,135.53,135.51,15.8695787]
[1726167865024,0.25098,135.53,135.51,30.53838133]
[1726167865325,23.776884,135.54,135.52,14.66880263]
[1726167866310,1.84460857,135.59,135.53,14.66880263]
[1726167866509,56.3596,135.62,135.56,14.66880263]
[1726167866510,6.3596,135.62,135.56,14.66880263]
[1726167866707,8.20362582,135.62,135.55,14.66880263]
[1726167866906,1.84402582,135.6,135.55,14.66880263]
[1726167867828,24.027864,135.59,135.55,14.66880263]
[1726167868028,23.776884,135.57,135.54,14.66880263]
[1726167868204,0.25098,135.56,135.54,20.0]
[1726167869502,50.2544787,135.66,135.56,20.0]
[1726167869705,0.2544787,135.66,135.57,38.52860618]
[1726167870723,0.12549,135.65,135.57,38.52860618]
[1726167870924,0.25098,135.65,135.57,38.52860618]
[1726167871726,23.776884,135.64,135.57,38.52860618]
[1726167871900,0.25098,135.63,135.57,38.52860618]
[1726167873033,0.25098,135.63,135.58,20.0]
[1726167881750,23.776884,135.62,135.55,6.1718]
[1726167881929,23.776884,135.6,135.55,6.1718]
[1726167882261,23.776884,135.58,135.54,16.5134]
[1726167882545,23.776884,135.56,135.54,16.5134]
[1726167883643,23.776884,135.56,135.52,6.4487]
[1726167883849,23.776884,135.54,135.52,6.4487]
[1726167884054,0.25098,135.53,135.52,6.4487]
[1726167884640,0.25098,135.53,135.51,0.2544787]
[1726167884947,0.25098,135.53,135.51,20.2544787]
[1726167887738,23.776884,135.52,135.51,20.2544787]
[1726167888047,24.027864,135.52,135.51,0.2544787]
[1726167891727,23.776884,135.57,135.51,0.2544787]
[1726167891947,0.25098,135.56,135.51,0.2544787]
[1726167893570,2.09568639,135.56,135.51,0.2544787]
[1726167893736,0.25098,135.56,135.51,0.2544787]
[1726167896355,23.776884,135.55,135.51,0.2544787]
[1726167896558,23.776884,135.53,135.51,0.2544787]
[1726167901453,22.1569,135.61,135.52,14.67102634]
[1726167901639,28.7939,135.61,135.52,14.67102634]
[1726167902145,30.63829179,135.61,135.52,14.67102634]
[1726167902340,22.1569,135.61,135.52,14.67102634]
[1726167902745,24.027864,135.6,135.52,14.67102634]
[1726167903041,15.8348,135.61,135.54,14.67102634]
[1726167903242,71.8606,135.64,135.55,14.67102634]
[1726167903742,65.2253,135.64,135.55,14.67102634]
[1726167903942,65.2253,135.64,135.56,14.67102634]
[1726167903943,15.2253,135.64,135.56,14.67102634]
[1726167904942,15.2253,135.64,135.57,14.67102634]
[1726167905142,262.1887787,135.66,135.59,14.67102634]
[1726167905143,0.2544787,135.66,135.59,14.67102634]
[1726167906064,0.2544787,135.66,135.58,36.92262634]
[1726167906242,0.2544787,135.66,135.58,22.2516]
[1726167906763,0.12549,135.65,135.59,1.47444478]
[1726167906964,0.12549,135.65,135.58,22.2516]
[1726167907167,0.12549,135.65,135.59,1.47299149]
[1726167907461,0.12549,135.65,135.59,1.47165288]
[1726167907671,0.12549,135.65,135.58,22.2516]
[1726167907968,0.25098,135.65,135.59,1.47319093]
[1726167908148,0.25098,135.65,135.58,22.2516]
[1726167909265,0.25098,135.65,135.58,45.14575183]
[1726167910258,23.776884,135.64,135.58,45.14575183]
[1726167910547,0.25098,135.63,135.58,22.2516]
[1726167911950,2.09439697,135.63,135.58,22.2516]
[1726167912149,23.776884,135.62,135.58,22.2516]
[1726167912373,0.25098,135.61,135.58,22.2516]
[1726167912877,2.09472597,135.61,135.55,20.0]
[1726167913041,0.25098,135.61,135.56,22.89415183]
[1726167913247,0.25098,135.61,135.57,20.0]
[1726167916352,23.776884,135.62,135.57,20.0]
[1726167919782,0.25098,135.61,135.57,20.0]
[1726167924564,0.2544787,135.66,135.58,22.89415183]
[1726167925765,0.25098,135.65,135.58,22.89415183]
[1726167926268,0.12549,135.65,135.6,22.89415183]
[1726167926886,0.2544787,135.66,135.62,22.89415183]
[1726167927458,0.2544787,135.66,135.63,20.0]
[1726167928178,0.2544787,135.66,135.64,14.6394116]
[1726167930181,0.2544787,135.66,135.65,14.6394116]
[1726167931189,0.2544787,135.66,135.64,14.6394116]
[1726167933800,0.2544787,135.66,135.63,14.6394116]
[1726167934186,0.25098,135.65,135.6,34.6394116]
[1726167934390,23.776884,135.64,135.59,21.6235]
[1726167934703,0.25098,135.63,135.59,21.6235]
[1726167934891,0.25098,135.63,135.59,36.2629116]
[1726167935485,0.25098,135.63,135.6,20.0]
[1726167936382,0.25098,135.63,135.59,36.2629116]
[1726167936902,0.25098,135.63,135.59,20.9950116]
[1726167939996,0.25098,135.61,135.58,14.6394116]
[1726167940396,23.776884,135.65,135.6,14.6394116]
[1726167940616,0.25098,135.64,135.58,14.6394116]
[1726167940799,0.25098,135.64,135.57,34.6394116]